fUST/lending_fUST_20240921
["ID","MTS","AMOUNT","RATE_DAILY","PERIOD"]
[338666075,1726861841462,-500.0,0.0001511,2]
[338666076,1726861841471,-500.0,0.0001511,2]
[338666077,1726861841480,-491.5,0.0001511,2]
[338666078,1726861841489,-500.0,0.0001511,2]
[338666079,1726861841499,-500.0,0.0001511,2]
[338666080,1726861841508,-158.62,0.0001511,2]
[338666081,1726861841517,-500.0,0.0001511,2]
[338666082,1726861841528,-636.89,0.0001511,2]
[338666083,1726861841538,-500.0,0.0001511,2]
[338666084,1726861841547,-500.0,0.0001511,2]
[338666085,1726861841556,-1821.39,0.0001511,2]
[338666086,1726861841567,-500.0,0.0001511,2]
[338666087,1726861841576,-500.0,0.0001511,2]
[338666088,1726861841585,-500.0,0.0001511,2]
[338666089,1726861841595,-500.0,0.0001511,2]
[338666090,1726861841607,-500.0,0.0001511,2]
[338666091,1726861841616,-219.85098782,0.0001511,2]
[338666092,1726861841626,-500.0,0.0001511,2]
[338666093,1726861841635,-500.0,0.0001511,2]
[338666094,1726861841645,-500.0,0.0001511,2]
[338666095,1726861841655,-1170.8,0.0001511,2]
[338666096,1726861841664,-500.0,0.0001511,2]
[338666097,1726861841675,-500.0,0.0001511,2]
[338666098,1726861841684,-500.0,0.0001511,2]
[338666099,1726861841693,-500.0,0.0001511,2]
[338666100,1726861841702,-500.0,0.0001511,2]
[338666101,1726861841710,-500.0,0.0001511,2]
[338666102,1726861841719,-500.0,0.0001511,2]
[338666103,1726861841728,-500.0,0.0001511,2]
[338666104,1726861841737,-6388.89,0.0001511,2]
[338666105,1726861841747,-330.56,0.0001512,2]
[338666106,1726861841757,-402.61811148,0.0001512,2]
[338666107,1726861841766,-500.0,0.0001512,2]
[338666108,1726861841776,-1603.85,0.0001512,2]
[338666109,1726861841785,-500.0,0.0001512,2]
[338666110,1726861841794,-500.0,0.0001512,2]
[338666111,1726861841804,-500.0,0.0001512,2]
[338666112,1726861841813,-500.0,0.0001512,2]
[338666113,1726861841824,-500.0,0.0001512,2]
[338666114,1726861841835,-500.0,0.0001512,2]
[338666115,1726861841844,-500.0,0.0001512,2]
[338666116,1726861841854,-500.0,0.0001512,2]
[338666117,1726861841862,-500.0,0.0001512,2]
[338666118,1726861841872,-500.0,0.0001512,2]
[338666119,1726861841881,-500.0,0.0001512,2]
[338666120,1726861841892,-594.94,0.0001512,2]
[338666121,1726861841902,-611.1,0.0001512,2]
[338666122,1726861841910,-500.0,0.0001512,2]
[338666123,1726861841919,-500.0,0.0001512,2]
[338666124,1726861841928,-328.69,0.0001512,2]
[338666125,1726861841937,-500.0,0.0001512,2]
[338666126,1726861841949,-500.0,0.0001512,2]
[338666127,1726861841959,-380.67,0.0001512,2]
[338666128,1726861841968,-916.06,0.0001512,2]
[338666129,1726861841977,-509.7,0.0001512,2]
[338666130,1726861841986,-599.42,0.0001512,2]
[338666131,1726861841995,-500.0,0.0001512,2]
[338666132,1726861842005,-586.37,0.0001512,2]
[338666133,1726861842014,-500.0,0.0001512,2]
[338666134,1726861842023,-419.67,0.0001512,2]
[338666135,1726861842033,-1222.61,0.0001512,2]
[338666136,1726861842042,-500.0,0.0001512,2]
[338666137,1726861842051,-500.0,0.0001512,2]
[338666138,1726861842060,-429.08,0.0001512,2]
[338666139,1726861842069,-500.0,0.0001512,2]
[338666140,1726861842078,-734.95,0.0001512,2]
[338666141,1726861842087,-500.0,0.0001512,2]
[338666142,1726861842096,-364.86,0.0001512,2]
[338666143,1726861842105,-620.95,0.0001512,2]
[338666144,1726861842116,-500.0,0.0001512,2]
[338666145,1726861842127,-500.0,0.0001512,2]
[338666146,1726861842138,-500.0,0.0001512,2]
[338666147,1726861842147,-500.0,0.0001512,2]
[338666148,1726861842157,-632.1,0.0001512,2]
[338666149,1726861842167,-995.07,0.0001512,2]
[338666150,1726861842177,-596.31,0.0001512,2]
[338666151,1726861842186,-500.0,0.0001512,2]
[338666152,1726861842198,-500.0,0.0001512,2]
[338666153,1726861842208,-500.0,0.0001512,2]
[338666154,1726861842217,-500.0,0.0001512,2]
[338666155,1726861842226,-366.76,0.0001512,2]
[338666156,1726861842237,-412.48669,0.0001512,2]
[338666157,1726861842247,-500.0,0.0001512,2]
[338666158,1726861842257,-412.48669,0.0001512,2]
[338666159,1726861842266,-500.0,0.0001512,2]
[338666160,1726861842276,-500.0,0.0001512,2]
[338666161,1726861842286,-151.0,0.0001512,2]
[338666162,1726861842295,-151.0,0.0001512,2]
[338666163,1726861842304,-500.0,0.0001512,2]
[338666164,1726861842316,-500.0,0.0001512,2]
[338666165,1726861842326,-500.0,0.0001512,2]
[338666166,1726861842337,-500.0,0.0001512,2]
[338666167,1726861842348,-500.0,0.0001512,2]
[338666168,1726861842357,-518.85,0.0001512,2]
[338666169,1726861842367,-247.63,0.0001512,2]
[338666170,1726861842376,-150.112233,0.000152,2]
[338666171,1726861842385,-150.112233,0.000153,2]
[338666172,1726861842394,-257.6985854,0.00015352,2]
[338666173,1726861842404,-500.0,0.00015384,2]
[338666174,1726861842413,-500.0,0.00015384,2]
[338666175,1726861842422,-211.22218004,0.00015384,2]
[338666176,1726861842432,-500.0,0.00015384,2]
[338666177,1726861842441,-468.16,0.00015384,2]
[338666178,1726861842451,-500.0,0.00015384,2]
[338666179,1726861842460,-942.42,0.00015384,2]
[338666180,1726861842470,-500.0,0.00015384,2]
[338666181,1726861842480,-500.0,0.00015384,2]
[338666182,1726861842489,-151.0,0.00015384,2]
[338666183,1726861842498,-151.0,0.00015384,2]
[338666184,1726861842507,-500.0,0.00015384,2]
[338666185,1726861842516,-738.19,0.00015384,2]
[338666186,1726861842527,-500.0,0.00015384,2]
[338666187,1726861842544,-500.0,0.00015384,2]
[338666188,1726861842556,-500.0,0.00015384,2]
[338666189,1726861842565,-535.98,0.00015384,2]
[338666190,1726861842575,-500.0,0.00015384,2]
[338666191,1726861842584,-500.0,0.00015384,2]
[338666192,1726861842594,-500.0,0.00015384,2]
[338666193,1726861842604,-534.67,0.00015384,2]
[338666194,1726861842613,-500.0,0.00015384,2]
[338666195,1726861842623,-151.0,0.00015384,2]
[338666196,1726861842633,-500.0,0.00015384,2]
[338666197,1726861842642,-596.23307049,0.00015384,2]
[338666198,1726861842651,-580.18,0.00015384,2]
[338666199,1726861842661,-280.629572,0.00015384,2]
[338666200,1726861842670,-152.007061,0.00015384,2]
[338666201,1726861842679,-280.629572,0.00015384,2]
[338666202,1726861842689,-152.007061,0.00015384,2]
[338666203,1726861842698,-500.0,0.00015384,2]
[338666204,1726861842707,-500.0,0.00015384,2]
[338666205,1726861842717,-500.0,0.00015384,2]
[338666206,1726861842726,-500.0,0.00015384,2]
[338666207,1726861842736,-500.0,0.00015384,2]
[338666208,1726861842746,-500.0,0.00015384,2]
[338666209,1726861842755,-636.89,0.00015384,2]
[338666210,1726861842764,-500.0,0.00015384,2]
[338666211,1726861842776,-500.0,0.00015384,2]
[338666212,1726861842785,-1821.39,0.00015384,2]
[338666213,1726861842795,-874.555519,0.00015384,2]
[338666214,1726861842804,-500.0,0.00015384,2]
[338666216,1726861842814,-874.555519,0.00015384,2]
[338666217,1726861842824,-500.0,0.00015384,2]
[338666218,1726861842835,-500.0,0.00015384,2]
[338666219,1726861842846,-500.0,0.00015384,2]
[338666220,1726861842857,-500.0,0.00015384,2]
[338666221,1726861842866,-500.0,0.00015384,2]
[338666222,1726861842875,-1170.8,0.00015384,2]
[338666223,1726861842884,-500.0,0.00015384,2]
[338666224,1726861842897,-500.0,0.00015384,2]
[338666225,1726861842908,-337.17846631,0.00015384,2]
[338666226,1726861842918,-500.0,0.00015384,2]
[338666227,1726861842928,-500.0,0.00015384,2]
[338666228,1726861842940,-500.0,0.00015384,2]
[338666229,1726861842951,-6388.89,0.00015384,2]
[338666230,1726861842961,-355.98,0.00015394,2]
[338666231,1726861842970,-1603.85,0.00015394,2]
[338666232,1726861842979,-500.0,0.00015394,2]
[338666233,1726861842989,-329.89,0.00015394,2]
[338666234,1726861842999,-275.78,0.00015394,2]
[338666235,1726861843010,-500.0,0.00015394,2]
[338666236,1726861843021,-150.83,0.00015394,2]
[338666238,1726861843030,-500.0,0.00015394,2]
[338666239,1726861843040,-500.0,0.00015394,2]
[338666240,1726861843049,-500.0,0.00015394,2]
[338666241,1726861843059,-500.0,0.00015394,2]
[338666242,1726861843068,-500.0,0.00015394,2]
[338666244,1726861843079,-500.0,0.00015394,2]
[338666245,1726861843090,-594.94,0.00015394,2]
[338666247,1726861843100,-151.0,0.00015394,2]
[338666248,1726861843110,-611.1,0.00015394,2]
[338666249,1726861843121,-500.0,0.00015394,2]
[338666250,1726861843132,-500.0,0.00015394,2]
[338666251,1726861843147,-500.0,0.00015394,2]
[338666252,1726861843158,-916.06,0.00015394,2]
[338666253,1726861843168,-151.0,0.00015394,2]
[338666254,1726861843179,-509.7,0.00015394,2]
[338666255,1726861843189,-151.0,0.00015394,2]
[338666256,1726861843200,-151.0,0.00015394,2]
[338666258,1726861843209,-151.0,0.00015394,2]
[338666259,1726861843219,-599.42,0.00015394,2]
[338666260,1726861843229,-500.0,0.00015394,2]
[338666261,1726861843239,-586.37,0.00015394,2]
[338666262,1726861843249,-500.0,0.00015394,2]
[338666263,1726861843259,-1222.61,0.00015394,2]
[338666264,1726861843269,-500.0,0.00015394,2]
[338666265,1726861843280,-500.0,0.00015394,2]
[338666266,1726861843291,-734.95,0.00015394,2]
[338666267,1726861843301,-449.51298724,0.00015394,2]
[338666268,1726861843312,-620.95,0.00015394,2]
[338666269,1726861843322,-500.0,0.00015394,2]
[338666270,1726861843333,-264.363765,0.00015394,2]
[338666271,1726861843342,-500.0,0.00015394,2]
[338666272,1726861843352,-264.363765,0.00015394,2]
[338666273,1726861843362,-500.0,0.00015394,2]
[338666274,1726861843372,-500.0,0.00015394,2]
[338666275,1726861843382,-7139.2745635,0.00015394,2]
[338666276,1726861843392,-995.07,0.00015394,2]
[338666277,1726861843403,-500.0,0.00015394,2]
[338666278,1726861843413,-500.0,0.00015394,2]
[338666279,1726861843422,-500.0,0.00015394,2]
[338666280,1726861843432,-500.0,0.00015394,2]
[338666281,1726861843442,-500.0,0.00015394,2]
[338666282,1726861843453,-500.0,0.00015394,2]
[338666283,1726861843463,-500.0,0.00015394,2]
[338666284,1726861843473,-500.0,0.00015394,2]
[338666285,1726861843483,-500.0,0.00015394,2]
[338666286,1726861843493,-500.0,0.00015394,2]
[338666287,1726861843503,-500.0,0.00015394,2]
[338666288,1726861843513,-500.0,0.00015394,2]
[338666289,1726861843525,-150.112233,0.000154,2]
[338666290,1726861843535,-153.0,0.00015479,2]
[338666291,1726861843545,-1000.0,0.00015566,2]
[338666292,1726861843555,-600.0,0.00015588,2]
[338666293,1726861843564,-150.112233,0.000156,2]
[338666294,1726861843574,-150.112233,0.000156,2]
[338666295,1726861843584,-150.112233,0.000156,2]
[338666296,1726861843596,-2411.91857631,0.00015606,2]
[338666297,1726861843613,-500.0,0.00015658,2]
[338666299,1726861843624,-500.0,0.00015658,2]
[338666301,1726861843634,-500.0,0.00015658,2]
[338666322,1726861843810,-190.24451271,0.00015658,2]
[338666325,1726861843841,-942.42,0.00015658,2]
[338666327,1726861843850,-500.0,0.00015658,2]
[338666329,1726861843860,-500.0,0.00015658,2]
[338666331,1726861843869,-151.0,0.00015658,2]
[338666333,1726861843878,-151.0,0.00015658,2]
[338666335,1726861843887,-589.98,0.00015658,2]
[338666337,1726861843897,-738.19,0.00015658,2]
[338666339,1726861843906,-500.0,0.00015658,2]
[338666341,1726861843915,-500.0,0.00015658,2]
[338666343,1726861843925,-500.0,0.00015658,2]
[338666345,1726861843934,-535.98,0.00015658,2]
[338666347,1726861843944,-500.0,0.00015658,2]
[338666349,1726861843954,-500.0,0.00015658,2]
[338666351,1726861843963,-496.33150023,0.00015658,2]
[338666353,1726861843973,-534.67,0.00015658,2]
[338666355,1726861843983,-500.0,0.00015658,2]
[338666357,1726861843994,-500.0,0.00015658,2]
[338666359,1726861844004,-151.0,0.00015658,2]
[338666361,1726861844015,-580.18,0.00015658,2]
[338666363,1726861844025,-280.629572,0.00015658,2]
[338666366,1726861844036,-152.007061,0.00015658,2]
[338666368,1726861844047,-280.629572,0.00015658,2]
[338666370,1726861844057,-152.007061,0.00015658,2]
[338666372,1726861844067,-500.0,0.00015658,2]
[338666374,1726861844076,-500.0,0.00015658,2]
[338666376,1726861844085,-500.0,0.00015658,2]
[338666378,1726861844094,-500.0,0.00015658,2]
[338666380,1726861844105,-500.0,0.00015658,2]
[338666382,1726861844119,-636.89,0.00015658,2]
[338666384,1726861844129,-500.0,0.00015658,2]
[338666387,1726861844140,-500.0,0.00015658,2]
[338666389,1726861844151,-1821.39,0.00015658,2]
[338666391,1726861844160,-874.555519,0.00015658,2]
[338666393,1726861844169,-500.0,0.00015658,2]
[338666395,1726861844178,-874.555519,0.00015658,2]
[338666397,1726861844189,-500.0,0.00015658,2]
[338666399,1726861844199,-500.0,0.00015658,2]
[338666401,1726861844209,-500.0,0.00015658,2]
[338666403,1726861844219,-500.0,0.00015658,2]
[338666405,1726861844229,-500.0,0.00015658,2]
[338666407,1726861844241,-1170.8,0.00015658,2]
[338666410,1726861844254,-500.0,0.00015658,2]
[338666412,1726861844264,-500.0,0.00015658,2]
[338666414,1726861844275,-500.0,0.00015658,2]
[338666416,1726861844286,-500.0,0.00015658,2]
[338666418,1726861844296,-6388.89,0.00015658,2]
[338666420,1726861844306,-1603.85,0.00015668,2]
[338666423,1726861844317,-500.0,0.00015668,2]
[338666425,1726861844327,-500.0,0.00015668,2]
[338666427,1726861844337,-500.0,0.00015668,2]
[338666429,1726861844348,-500.0,0.00015668,2]
[338666431,1726861844359,-500.0,0.00015668,2]
[338666433,1726861844369,-631.33,0.00015668,2]
[338666435,1726861844378,-500.0,0.00015668,2]
[338666437,1726861844388,-223.13053213,0.00015668,2]
[338666439,1726861844397,-594.94,0.00015668,2]
[338666441,1726861844407,-151.0,0.00015668,2]
[338666443,1726861844417,-611.1,0.00015668,2]
[338666445,1726861844428,-500.0,0.00015668,2]
[338666447,1726861844438,-500.0,0.00015668,2]
[338666450,1726861844449,-500.0,0.00015668,2]
[338666452,1726861844461,-5000.0,0.00015668,2]
[338666453,1726861844471,-5000.0,0.00015668,2]
[338666455,1726861844480,-3615.322801,0.00015668,2]
[338666457,1726861844489,-916.06,0.00015668,2]
[338666459,1726861844499,-151.0,0.00015668,2]
[338666461,1726861844509,-509.7,0.00015668,2]
[338666463,1726861844520,-151.0,0.00015668,2]
[338666466,1726861844531,-151.0,0.00015668,2]
[338666468,1726861844542,-151.0,0.00015668,2]
[338666470,1726861844552,-599.42,0.00015668,2]
[338666472,1726861844562,-500.0,0.00015668,2]
[338666474,1726861844571,-586.37,0.00015668,2]
[338666476,1726861844582,-500.0,0.00015668,2]
[338666478,1726861844594,-1222.61,0.00015668,2]
[338666480,1726861844606,-500.0,0.00015668,2]
[338666483,1726861844620,-500.0,0.00015668,2]
[338666485,1726861844631,-734.95,0.00015668,2]
[338666487,1726861844641,-620.95,0.00015668,2]
[338666489,1726861844651,-500.0,0.00015668,2]
[338666491,1726861844660,-264.363765,0.00015668,2]
[338666493,1726861844669,-500.0,0.00015668,2]
[338666495,1726861844678,-264.363765,0.00015668,2]
[338666497,1726861844688,-500.0,0.00015668,2]
[338666499,1726861844697,-500.0,0.00015668,2]
[338666501,1726861844707,-995.07,0.00015668,2]
[338666503,1726861844716,-151.0,0.00015668,2]
[338666505,1726861844726,-500.0,0.00015668,2]
[338666507,1726861844735,-427.47,0.00015668,2]
[338666509,1726861844745,-500.0,0.00015668,2]
[338666511,1726861844754,-500.0,0.00015668,2]
[338666513,1726861844764,-412.48669,0.00015668,2]
[338666514,1726861844774,-500.0,0.00015668,2]
[338666517,1726861844784,-412.48669,0.00015668,2]
[338666519,1726861844795,-500.0,0.00015668,2]
[338666521,1726861844804,-500.0,0.00015668,2]
[338666523,1726861844819,-151.0,0.00015668,2]
[338666525,1726861844832,-151.0,0.00015668,2]
[338666526,1726861844841,-500.0,0.00015668,2]
[338666528,1726861844850,-500.0,0.00015668,2]
[338666530,1726861844860,-500.0,0.00015668,2]
[338666532,1726861844869,-160.09702408,0.00015673,2]
[338666534,1726861844879,-500.0,0.00015673,2]
[338666536,1726861844888,-500.45897975,0.00015673,2]
[338666538,1726861844898,-500.0,0.00015674,2]
[338666540,1726861844908,-500.0,0.00015674,2]
[338666542,1726861844918,-500.0,0.00015674,2]
[338666544,1726861844927,-459.2973992,0.00015674,2]
[338666546,1726861844938,-500.0,0.00015674,2]
[338666548,1726861844949,-500.0,0.00015674,2]
[338666550,1726861844959,-500.0,0.00015674,2]
[338666552,1726861844970,-500.0,0.00015674,2]
[338666554,1726861844979,-502.54875055,0.00015674,2]
[338666556,1726861844988,-161.81281085,0.00015675,2]
[338666558,1726861844998,-160.0,0.00015675,2]
[338666560,1726861845007,-305.00861138,0.00015675,2]
[338666562,1726861845017,-579.96068453,0.00015675,2]
[338666564,1726861845026,-151.0,0.00015675,2]
[338666566,1726861845038,-500.0,0.00015675,2]
[338666568,1726861845052,-274.96901099,0.00015675,2]
[338666570,1726861845061,-151.0,0.00015675,2]
[338666572,1726861845070,-280.629572,0.00015675,2]
[338666574,1726861845079,-152.007061,0.00015675,2]
[338666576,1726861845088,-280.629572,0.00015675,2]
[338666578,1726861845097,-152.007061,0.00015675,2]
[338666580,1726861845107,-874.555519,0.00015675,2]
[338666582,1726861845116,-874.555519,0.00015675,2]
[338666584,1726861845125,-1476.8392526,0.00015675,2]
[338666586,1726861845136,-500.0,0.00015676,2]
[338666588,1726861845146,-500.0,0.00015676,2]
[338666590,1726861845155,-500.0,0.00015676,2]
[338666592,1726861845165,-500.0,0.00015676,2]
[338666594,1726861845173,-625.54,0.00015676,2]
[338666596,1726861845182,-500.0,0.00015676,2]
[338666597,1726861845192,-500.0,0.00015676,2]
[338666599,1726861845201,-500.0,0.00015676,2]
[338666601,1726861845211,-500.0,0.00015676,2]
[338666604,1726861845220,-500.0,0.00015676,2]
[338666606,1726861845230,-500.0,0.00015676,2]
[338666608,1726861845239,-500.0,0.00015676,2]
[338666610,1726861845248,-578.26,0.00015676,2]
[338666612,1726861845257,-500.0,0.00015676,2]
[338666614,1726861845267,-500.0,0.00015676,2]
[338666616,1726861845278,-500.0,0.00015676,2]
[338666618,1726861845287,-500.0,0.00015676,2]
[338666620,1726861845296,-500.0,0.00015676,2]
[338666622,1726861845306,-500.0,0.00015676,2]
[338666624,1726861845315,-500.0,0.00015676,2]
[338666626,1726861845324,-500.0,0.00015676,2]
[338666628,1726861845334,-209.16,0.00015676,2]
[338666630,1726861845343,-500.78879151,0.00015676,2]
[338666632,1726861845352,-392.36223137,0.00015676,2]
[338666634,1726861845362,-500.0,0.00015676,2]
[338666636,1726861845372,-500.0,0.00015676,2]
[338666638,1726861845381,-355.91189258,0.00015676,2]
[338666639,1726861845391,-500.0,0.00015676,2]
[338666640,1726861845404,-500.0,0.00015676,2]
[338666641,1726861845413,-500.0,0.00015676,2]
[338666642,1726861845423,-500.86758224,0.00015676,2]
[338666643,1726861845432,-500.0,0.00015676,2]
[338666644,1726861845441,-500.0,0.00015676,2]
[338666645,1726861845451,-500.0,0.00015676,2]
[338666646,1726861845460,-500.0,0.00015676,2]
[338666647,1726861845469,-500.0,0.00015676,2]
[338666648,1726861845479,-500.0,0.00015676,2]
[338666649,1726861845489,-500.0,0.00015676,2]
[338666650,1726861845499,-500.0,0.00015676,2]
[338666651,1726861845508,-500.0,0.00015676,2]
[338666652,1726861845518,-500.0,0.00015676,2]
[338666653,1726861845534,-500.0,0.00015676,2]
[338666655,1726861845544,-500.0,0.00015676,2]
[338666657,1726861845554,-500.0,0.00015676,2]
[338666659,1726861845563,-500.0,0.00015676,2]
[338666660,1726861845572,-500.0,0.00015676,2]
[338666662,1726861845582,-500.0,0.00015676,2]
[338666665,1726861845593,-500.0,0.00015676,2]
[338666667,1726861845602,-500.0,0.00015676,2]
[338666668,1726861845612,-500.0,0.00015676,2]
[338666671,1726861845623,-882.0,0.00015676,2]
[338666673,1726861845633,-882.0,0.00015676,2]
[338666675,1726861845642,-882.0,0.00015676,2]
[338666676,1726861845651,-882.0,0.00015676,2]
[338666678,1726861845660,-504.93,0.00015676,2]
[338666680,1726861845670,-882.0,0.00015676,2]
[338666682,1726861845679,-882.0,0.00015676,2]
[338666684,1726861845690,-882.0,0.00015676,2]
[338666686,1726861845699,-599.04,0.00015676,2]
[338666688,1726861845708,-882.0,0.00015676,2]
[338666690,1726861845718,-500.0,0.00015676,2]
[338666692,1726861845727,-500.0,0.00015676,2]
[338666694,1726861845737,-500.0,0.00015676,2]
[338666696,1726861845747,-500.0,0.00015676,2]
[338666698,1726861845756,-500.0,0.00015676,2]
[338666700,1726861845765,-500.0,0.00015676,2]
[338666702,1726861845778,-500.0,0.00015676,2]
[338666704,1726861845787,-500.0,0.00015676,2]
[338666706,1726861845796,-500.0,0.00015676,2]
[338666708,1726861845805,-812.5,0.00015676,2]
[338666710,1726861845814,-500.0,0.00015676,2]
[338666712,1726861845824,-500.0,0.00015676,2]
[338666714,1726861845834,-500.0,0.00015676,2]
[338666717,1726861845843,-335.43192672,0.00015676,2]
[338666719,1726861845852,-500.0,0.00015676,2]
[338666721,1726861845862,-500.0,0.00015676,2]
[338666723,1726861845871,-630.4,0.00015676,2]
[338666724,1726861845881,-500.0,0.00015676,2]
[338666725,1726861845893,-500.0,0.00015676,2]
[338666726,1726861845903,-528.41126972,0.00015676,2]
[338666727,1726861845914,-500.0,0.00015676,2]
[338666729,1726861845923,-500.0,0.00015676,2]
[338666730,1726861845932,-500.0,0.00015676,2]
[338666731,1726861845942,-500.0,0.00015676,2]
[338666733,1726861845954,-500.0,0.00015676,2]
[338666735,1726861845964,-500.0,0.00015676,2]
[338666737,1726861845974,-500.0,0.00015676,2]
[338666739,1726861845983,-500.0,0.00015676,2]
[338666741,1726861845994,-500.0,0.00015676,2]
[338666743,1726861846004,-500.0,0.00015676,2]
[338666745,1726861846017,-500.0,0.00015676,2]
[338666747,1726861846031,-500.0,0.00015676,2]
[338666750,1726861846042,-567.2668096,0.00015676,2]
[338666752,1726861846051,-500.0,0.00015676,2]
[338666754,1726861846061,-500.0,0.00015676,2]
[338666755,1726861846072,-500.0,0.00015676,2]
[338666757,1726861846082,-324.92963086,0.00015676,2]
[338666759,1726861846092,-500.0,0.00015676,2]
[338666761,1726861846102,-500.0,0.00015676,2]
[338666763,1726861846111,-500.0,0.00015676,2]
[338666765,1726861846120,-500.0,0.00015676,2]
[338666767,1726861846130,-500.0,0.00015676,2]
[338666769,1726861846139,-500.0,0.00015676,2]
[338666771,1726861846149,-500.0,0.00015676,2]
[338666773,1726861846159,-500.0,0.00015676,2]
[338666775,1726861846168,-677.88,0.00015676,2]
[338666777,1726861846178,-677.88,0.00015676,2]
[338666779,1726861846188,-677.88,0.00015676,2]
[338666781,1726861846199,-677.88,0.00015676,2]
[338666783,1726861846211,-677.88,0.00015676,2]
[338666785,1726861846222,-677.88,0.00015676,2]
[338666787,1726861846233,-677.88,0.00015676,2]
[338666789,1726861846242,-677.88,0.00015676,2]
[338666791,1726861846252,-500.0,0.00015676,2]
[338666793,1726861846261,-636.19,0.00015676,2]
[338666795,1726861846270,-500.0,0.00015676,2]
[338666798,1726861846284,-500.0,0.00015676,2]
[338666800,1726861846295,-500.0,0.00015676,2]
[338666806,1726861846344,-500.0,0.00015676,2]
[338666808,1726861846354,-547.26,0.00015676,2]
[338666810,1726861846363,-573.77,0.00015676,2]
[338666812,1726861846373,-573.77,0.00015676,2]
[338666814,1726861846381,-573.77,0.00015676,2]
[338666816,1726861846391,-573.77,0.00015676,2]
[338666818,1726861846400,-500.0,0.00015676,2]
[338666820,1726861846409,-573.77,0.00015676,2]
[338666822,1726861846418,-573.77,0.00015676,2]
[338666824,1726861846428,-573.77,0.00015676,2]
[338666825,1726861846437,-500.0,0.00015676,2]
[338666827,1726861846446,-573.77,0.00015676,2]
[338666828,1726861846456,-500.0,0.00015676,2]
[338666829,1726861846465,-500.0,0.00015676,2]
[338666830,1726861846475,-500.0,0.00015676,2]
[338666831,1726861846485,-620.53,0.00015676,2]
[338666834,1726861846496,-500.0,0.00015676,2]
[338666835,1726861846507,-500.0,0.00015676,2]
[338666836,1726861846518,-500.0,0.00015676,2]
[338666837,1726861846530,-500.0,0.00015676,2]
[338666839,1726861846540,-500.0,0.00015676,2]
[338666840,1726861846553,-500.0,0.00015676,2]
[338666841,1726861846563,-500.0,0.00015676,2]
[338666842,1726861846574,-500.0,0.00015676,2]
[338666843,1726861846584,-500.0,0.00015676,2]
[338666845,1726861846595,-500.0,0.00015676,2]
[338666846,1726861846607,-500.0,0.00015676,2]
[338666847,1726861846621,-500.0,0.00015676,2]
[338666848,1726861846632,-500.0,0.00015676,2]
[338666849,1726861846644,-500.0,0.00015676,2]
[338666851,1726861846656,-500.0,0.00015676,2]
[338666852,1726861846667,-500.0,0.00015676,2]
[338666853,1726861846679,-500.0,0.00015676,2]